[Event "January 2 Early 2024"]
[Site "https://www.chess.com"]
[Date "2024.01.02"]
[Round "4"]
[White "Morales Garcia, Sergio Joshafatt"]
[Black "Yagupov, Igor"]
[Result "0-1"]
[Board "114"]
[TimeControl "180+1"]
[WhiteFideId "5106249"]
[BlackFideId "4113632"]
[WhiteElo "2445"]
[BlackElo "2614"]
[WhiteTeam "MEX"]
[BlackTeam "RUS"]
[WhiteClock "0:00:00"]
[BlackClock "0:00:45"]

1. d4 {[%clk 0:03:00]}  d5 {[%clk 0:02:58]} 2. c4 {[%clk 0:03:01]}  c6 {[%clk 0:02:58]} 3. Nf3 {[%clk 0:03:01]}  Nf6 {[%clk 0:02:58]} 4. Nc3 {[%clk 0:03:02]}  e6 {[%clk 0:02:58]} 5. Bg5 {[%clk 0:03:00]}  h6 {[%clk 0:02:56]} 6. Bxf6 {[%clk 0:03:00]}  Qxf6 {[%clk 0:02:56]} 7. e3 {[%clk 0:03:01]}  Nd7 {[%clk 0:02:55]} 8. Rc1 {[%clk 0:03:00]}  g6 {[%clk 0:02:53]} 9. cxd5 {[%clk 0:02:49]}  exd5 {[%clk 0:02:52]} 10. Be2 {[%clk 0:02:50]}  Bd6 {[%clk 0:02:48]} 11. O-O {[%clk 0:02:48]}  O-O {[%clk 0:02:47]} 12. a3 {[%clk 0:02:48]}  a5 {[%clk 0:02:46]} 13. Re1 {[%clk 0:02:43]}  Re8 {[%clk 0:02:42]} 14. h3 {[%clk 0:02:41]}  Qe7 {[%clk 0:02:33]} 15. Bd3 {[%clk 0:02:33]}  Nf6 {[%clk 0:02:33]} 16. Qc2 {[%clk 0:02:33]}  Kg7 {[%clk 0:02:32]} 17. e4 {[%clk 0:02:26]}  dxe4 {[%clk 0:02:31]} 18. Nxe4 {[%clk 0:02:26]}  Nxe4 {[%clk 0:02:29]} 19. Bxe4 {[%clk 0:02:23]}  Qf6 {[%clk 0:02:27]} 20. Qc3 {[%clk 0:01:53]}  a4 {[%clk 0:02:23]} 21. Ne5 {[%clk 0:01:50]}  Bxe5 {[%clk 0:02:16]} 22. dxe5 {[%clk 0:01:50]}  Qxe5 {[%clk 0:02:17]} 23. Qb4 {[%clk 0:01:22]}  Qg5 {[%clk 0:02:10]} 24. Kh2 {[%clk 0:01:02]}  Be6 {[%clk 0:02:00]} 25. Qxb7 {[%clk 0:00:56]}  Qf4+ {[%clk 0:01:43]} 26. Kh1 {[%clk 0:00:52]}  Qxf2 {[%clk 0:01:27]} 27. Bxc6 {[%clk 0:00:47]}  Rab8 {[%clk 0:01:23]} 28. Rf1 {[%clk 0:00:22]}  Qxf1+ {[%clk 0:01:08]} 29. Rxf1 {[%clk 0:00:21]}  Rxb7 {[%clk 0:01:09]} 30. Bxb7 {[%clk 0:00:21]}  Rb8 {[%clk 0:01:09]} 31. Bc6 {[%clk 0:00:11]}  Rxb2 {[%clk 0:01:07]} 32. Rf3 {[%clk 0:00:05]}  Rb3 {[%clk 0:00:54]} 33. Bxa4 {[%clk 0:00:04]}  Rxf3 {[%clk 0:00:54]} 34. gxf3 {[%clk 0:00:05]}  Bxh3 {[%clk 0:00:53]} 35. Bc6 {[%clk 0:00:05]}  Bc8 {[%clk 0:00:49]} 36. a4 {[%clk 0:00:04]}  Kf6 {[%clk 0:00:50]} 37. Kg2 {[%clk 0:00:02]}  Ke7 {[%clk 0:00:48]} 38. Kg3 {[%clk 0:00:00]}  Bd7 {[%clk 0:00:45]} 0-1

[Event "January 2 Early 2024"]
[Site "https://www.chess.com"]
[Date "2024.01.02"]
[Round "4"]
[White "Shubenkova, Veronika"]
[Black "Topalov, Aleksandar"]
[Result "1-0"]
[Board "116"]
[TimeControl "180+1"]
[WhiteFideId "44124040"]
[BlackFideId "925659"]
[WhiteElo "2589"]
[BlackElo "2404"]
[WhiteTeam "RUS"]
[BlackTeam "SRB"]
[WhiteClock "0:01:04"]
[BlackClock "0:00:00"]

1. d4 {[%clk 0:02:59]}  Nf6 {[%clk 0:02:58]} 2. e3 {[%clk 0:02:58]}  g6 {[%clk 0:02:56]} 3. f4 {[%clk 0:02:58]}  Bg7 {[%clk 0:02:55]} 4. Nf3 {[%clk 0:02:59]}  O-O {[%clk 0:02:56]} 5. c3 {[%clk 0:02:59]}  d6 {[%clk 0:02:55]} 6. Bd3 {[%clk 0:02:59]}  Nbd7 {[%clk 0:02:55]} 7. O-O {[%clk 0:02:58]}  e5 {[%clk 0:02:54]} 8. Bc2 {[%clk 0:02:58]}  Qe7 {[%clk 0:02:50]} 9. f5 {[%clk 0:02:58]}  Nb6 {[%clk 0:02:39]} 10. fxg6 {[%clk 0:02:53]}  hxg6 {[%clk 0:02:39]} 11. Na3 {[%clk 0:02:49]}  Bg4 {[%clk 0:02:24]} 12. Qe1 {[%clk 0:02:47]}  Bxf3 {[%clk 0:02:18]} 13. Rxf3 {[%clk 0:02:44]}  e4 {[%clk 0:02:15]} 14. Rh3 {[%clk 0:02:43]}  Rfe8 {[%clk 0:02:06]} 15. Bd2 {[%clk 0:02:41]}  d5 {[%clk 0:02:02]} 16. Qe2 {[%clk 0:02:36]}  c6 {[%clk 0:02:00]} 17. Rf1 {[%clk 0:02:33]}  Qe6 {[%clk 0:01:41]} 18. Bd1 {[%clk 0:02:30]}  Nbd7 {[%clk 0:01:37]} 19. Be1 {[%clk 0:02:28]}  b5 {[%clk 0:01:25]} 20. Nc2 {[%clk 0:02:27]}  a5 {[%clk 0:01:24]} 21. Bh4 {[%clk 0:02:21]}  Rf8 {[%clk 0:01:14]} 22. Qe1 {[%clk 0:02:12]}  Ne8 {[%clk 0:01:09]} 23. Bg5 {[%clk 0:02:03]}  Nd6 {[%clk 0:00:57]} 24. Qh4 {[%clk 0:02:01]}  f5 {[%clk 0:00:57]} 25. g4 {[%clk 0:01:52]}  Kf7 {[%clk 0:00:52]} 26. gxf5 {[%clk 0:01:48]}  Nxf5 {[%clk 0:00:52]} 27. Bg4 {[%clk 0:01:45]}  Rh8 {[%clk 0:00:50]} 28. Qg3 {[%clk 0:01:42]}  Rxh3 {[%clk 0:00:49]} 29. Bxh3 {[%clk 0:01:42]}  Rf8 {[%clk 0:00:42]} 30. Qc7 {[%clk 0:01:37]}  Kg8 {[%clk 0:00:36]} 31. Ne1 {[%clk 0:01:29]}  a4 {[%clk 0:00:33]} 32. Ng2 {[%clk 0:01:28]}  Nf6 {[%clk 0:00:07]} 33. Nh4 {[%clk 0:01:20]}  Ne8 {[%clk 0:00:03]} 34. Qf4 {[%clk 0:01:14]}  Ned6 {[%clk 0:00:00]} 35. Qg4 {[%clk 0:01:04]} 1-0

[Event "January 2 Early 2024"]
[Site "https://www.chess.com"]
[Date "2024.01.02"]
[Round "4"]
[White "Borda Rodas, Anapaola S."]
[Black "Taboas Rodriguez, Daniel"]
[Result "1-0"]
[Board "118"]
[TimeControl "180+1"]
[WhiteFideId "152781"]
[BlackFideId "2208466"]
[WhiteElo "2365"]
[BlackElo "2568"]
[WhiteTeam "ARG"]
[BlackTeam "ESP"]
[WhiteClock "0:00:36"]
[BlackClock "0:00:06"]

1. e4 {[%clk 0:03:00]}  e5 {[%clk 0:02:59]} 2. Nf3 {[%clk 0:03:00]}  Nc6 {[%clk 0:03:00]} 3. d4 {[%clk 0:03:00]}  exd4 {[%clk 0:03:00]} 4. Nxd4 {[%clk 0:03:01]}  Nf6 {[%clk 0:03:00]} 5. Nxc6 {[%clk 0:02:57]}  bxc6 {[%clk 0:03:00]} 6. e5 {[%clk 0:02:57]}  Qe7 {[%clk 0:03:00]} 7. Qe2 {[%clk 0:02:57]}  Nd5 {[%clk 0:03:01]} 8. g3 {[%clk 0:02:51]}  f6 {[%clk 0:02:54]} 9. exf6 {[%clk 0:02:48]}  Nxf6 {[%clk 0:02:51]} 10. Nc3 {[%clk 0:02:42]}  Qxe2+ {[%clk 0:02:50]} 11. Bxe2 {[%clk 0:02:41]}  Bc5 {[%clk 0:02:50]} 12. O-O {[%clk 0:02:39]}  O-O {[%clk 0:02:50]} 13. Bg5 {[%clk 0:02:33]}  d5 {[%clk 0:02:49]} 14. Na4 {[%clk 0:02:19]}  Bd6 {[%clk 0:02:48]} 15. c4 {[%clk 0:02:05]}  Ne4 {[%clk 0:02:38]} 16. Be3 {[%clk 0:02:04]}  Ba6 {[%clk 0:02:06]} 17. Rac1 {[%clk 0:02:00]}  Rae8 {[%clk 0:02:04]} 18. Bd3 {[%clk 0:01:38]}  h6 {[%clk 0:01:55]} 19. Rfd1 {[%clk 0:01:32]}  Bb7 {[%clk 0:01:37]} 20. cxd5 {[%clk 0:01:23]}  cxd5 {[%clk 0:01:38]} 21. Nc5 {[%clk 0:01:19]}  Nxc5 {[%clk 0:01:30]} 22. Bxc5 {[%clk 0:01:18]}  Bxc5 {[%clk 0:01:30]} 23. Rxc5 {[%clk 0:01:18]}  c6 {[%clk 0:01:30]} 24. b4 {[%clk 0:01:12]}  Kf7 {[%clk 0:01:29]} 25. b5 {[%clk 0:01:09]}  cxb5 {[%clk 0:01:06]} 26. Rxb5 {[%clk 0:01:07]}  Bc6 {[%clk 0:01:02]} 27. Rc5 {[%clk 0:01:07]}  Rc8 {[%clk 0:01:01]} 28. Rdc1 {[%clk 0:01:06]}  Bd7 {[%clk 0:01:00]} 29. Rc7 {[%clk 0:01:04]}  Ke6 {[%clk 0:00:53]} 30. Ba6 {[%clk 0:00:53]}  Rxc7 {[%clk 0:00:49]} 31. Rxc7 {[%clk 0:00:54]}  Ra8 {[%clk 0:00:34]} 32. f4 {[%clk 0:00:52]}  Kd6 {[%clk 0:00:34]} 33. Rc1 {[%clk 0:00:44]}  Rb8 {[%clk 0:00:33]} 34. Rc2 {[%clk 0:00:33]}  Bf5 {[%clk 0:00:31]} 35. Rd2 {[%clk 0:00:31]}  Rb6 {[%clk 0:00:26]} 36. Be2 {[%clk 0:00:29]}  Kc5 {[%clk 0:00:25]} 37. Kf2 {[%clk 0:00:27]}  d4 {[%clk 0:00:25]} 38. Bf3 {[%clk 0:00:27]}  d3 {[%clk 0:00:20]} 39. g4 {[%clk 0:00:28]}  Bh7 {[%clk 0:00:19]} 40. f5 {[%clk 0:00:28]}  Kd4 {[%clk 0:00:20]} 41. Be2 {[%clk 0:00:27]}  Ke4 {[%clk 0:00:16]} 42. Bxd3+ {[%clk 0:00:26]}  Kf4 {[%clk 0:00:16]} 43. Be2 {[%clk 0:00:26]}  Bg8 {[%clk 0:00:15]} 44. h4 {[%clk 0:00:26]}  Rb4 {[%clk 0:00:11]} 45. Rc2 {[%clk 0:00:24]}  Ra4 {[%clk 0:00:09]} 46. Rc7 {[%clk 0:00:22]}  Rxa2 {[%clk 0:00:08]} 47. Ke1 {[%clk 0:00:15]}  a5 {[%clk 0:00:06]} 48. Rxg7 {[%clk 0:00:15]}  Bb3 {[%clk 0:00:06]} 49. f6 {[%clk 0:00:14]}  a4 {[%clk 0:00:05]} 50. f7 {[%clk 0:00:15]}  Ke3 {[%clk 0:00:06]} 51. f8=Q {[%clk 0:00:15]}  Rxe2+ {[%clk 0:00:06]} 52. Kf1 {[%clk 0:00:15]}  Bc4 {[%clk 0:00:06]} 53. Re7+ {[%clk 0:00:15]}  Kd2 {[%clk 0:00:05]} 54. Rxe2+ {[%clk 0:00:16]}  Bxe2+ {[%clk 0:00:06]} 55. Kg2 {[%clk 0:00:17]}  Bxg4 {[%clk 0:00:03]} 56. Kg3 {[%clk 0:00:18]}  h5 {[%clk 0:00:04]} 57. Qf4+ {[%clk 0:00:19]}  Kc3 {[%clk 0:00:03]} 58. Qxa4 {[%clk 0:00:20]}  Kd3 {[%clk 0:00:03]} 59. Qa3+ {[%clk 0:00:21]}  Ke4 {[%clk 0:00:03]} 60. Qe7+ {[%clk 0:00:22]}  Kf5 {[%clk 0:00:03]} 61. Qg5+ {[%clk 0:00:23]}  Ke4 {[%clk 0:00:03]} 62. Kf2 {[%clk 0:00:23]}  Kd4 {[%clk 0:00:02]} 63. Ke1 {[%clk 0:00:24]}  Ke4 {[%clk 0:00:03]} 64. Kf2 {[%clk 0:00:25]}  Kd4 {[%clk 0:00:03]} 65. Ke1 {[%clk 0:00:26]}  Ke4 {[%clk 0:00:04]} 66. Kd2 {[%clk 0:00:27]}  Kf3 {[%clk 0:00:04]} 67. Kc3 {[%clk 0:00:27]}  Kg3 {[%clk 0:00:05]} 68. Kd4 {[%clk 0:00:28]}  Kf3 {[%clk 0:00:06]} 69. Ke5 {[%clk 0:00:29]}  Kg3 {[%clk 0:00:07]} 70. Kf6 {[%clk 0:00:30]}  Kf3 {[%clk 0:00:07]} 71. Kg6 {[%clk 0:00:31]}  Kg3 {[%clk 0:00:08]} 72. Kh6 {[%clk 0:00:32]}  Kh3 {[%clk 0:00:08]} 73. Kg6 {[%clk 0:00:32]}  Kg3 {[%clk 0:00:09]} 74. Kf6 {[%clk 0:00:32]}  Kf3 {[%clk 0:00:09]} 75. Qe5 {[%clk 0:00:33]}  Bh3 {[%clk 0:00:09]} 76. Kg5 {[%clk 0:00:33]}  Bg4 {[%clk 0:00:09]} 77. Qf4+ {[%clk 0:00:34]}  Kg2 {[%clk 0:00:09]} 78. Qxg4+ {[%clk 0:00:35]}  hxg4 {[%clk 0:00:06]} 79. Kxg4 {[%clk 0:00:36]} 1-0

[Event "January 2 Early 2024"]
[Site "https://www.chess.com"]
[Date "2024.01.02"]
[Round "4"]
[White "Parfenov, Viktor N."]
[Black "Filippova, Margarita"]
[Result "0-1"]
[Board "121"]
[TimeControl "180+1"]
[WhiteFideId "4165969"]
[BlackFideId "34199680"]
[WhiteElo "2548"]
[BlackElo "2307"]
[WhiteTeam "RUS"]
[BlackTeam "RUS"]
[WhiteClock "0:01:21"]
[BlackClock "0:00:56"]

1. d4 {[%clk 0:03:00]}  a6 {[%clk 0:03:00]} 2. e4 {[%clk 0:02:59]}  e6 {[%clk 0:02:59]} 3. Bd3 {[%clk 0:02:58]}  d5 {[%clk 0:02:59]} 4. e5 {[%clk 0:02:57]}  c5 {[%clk 0:02:59]} 5. c3 {[%clk 0:02:57]}  Bd7 {[%clk 0:02:52]} 6. Nf3 {[%clk 0:02:54]}  Bb5 {[%clk 0:02:50]} 7. O-O {[%clk 0:02:52]}  Bxd3 {[%clk 0:02:48]} 8. Qxd3 {[%clk 0:02:53]}  Nc6 {[%clk 0:02:48]} 9. a3 {[%clk 0:02:42]}  cxd4 {[%clk 0:02:44]} 10. cxd4 {[%clk 0:02:41]}  Qb6 {[%clk 0:02:41]} 11. Nc3 {[%clk 0:02:39]}  Nge7 {[%clk 0:02:38]} 12. b4 {[%clk 0:02:38]}  Nf5 {[%clk 0:02:38]} 13. Be3 {[%clk 0:02:32]}  h5 {[%clk 0:02:31]} 14. Rac1 {[%clk 0:02:30]}  Rc8 {[%clk 0:02:26]} 15. Na4 {[%clk 0:02:28]}  Qa7 {[%clk 0:02:17]} 16. Rc2 {[%clk 0:02:20]}  Be7 {[%clk 0:02:10]} 17. Nc5 {[%clk 0:02:17]}  O-O {[%clk 0:02:04]} 18. Rfc1 {[%clk 0:02:16]}  Rfd8 {[%clk 0:01:56]} 19. g3 {[%clk 0:02:06]}  Qb6 {[%clk 0:01:39]} 20. Kg2 {[%clk 0:02:04]}  Na7 {[%clk 0:01:26]} 21. Bg5 {[%clk 0:01:51]}  Rc6 {[%clk 0:01:09]} 22. Bxe7 {[%clk 0:01:44]}  Nxe7 {[%clk 0:01:10]} 23. h3 {[%clk 0:01:39]}  Rdc8 {[%clk 0:01:08]} 24. Ng5 {[%clk 0:01:37]}  g6 {[%clk 0:00:58]} 25. Qf3 {[%clk 0:01:24]}  Nf5 {[%clk 0:00:56]} 26. g4 {[%clk 0:01:21]}  Nh4+ {[%clk 0:00:56]} 0-1

[Event "January 2 Early 2024"]
[Site "https://www.chess.com"]
[Date "2024.01.02"]
[Round "4"]
[White "Jahnz, Fabian"]
[Black "Baches Garcia, Guillermo"]
[Result "1/2-1/2"]
[Board "122"]
[TimeControl "180+1"]
[WhiteFideId "4653300"]
[BlackFideId "2209764"]
[WhiteElo "2291"]
[BlackElo "2540"]
[WhiteTeam "GER"]
[BlackTeam "ESP"]
[WhiteClock "0:01:51"]
[BlackClock "0:00:47"]

1. e4 {[%clk 0:03:00]}  c5 {[%clk 0:03:00]} 2. Nf3 {[%clk 0:03:00]}  d6 {[%clk 0:02:59]} 3. Bb5+ {[%clk 0:03:00]}  Bd7 {[%clk 0:02:58]} 4. Bxd7+ {[%clk 0:03:00]}  Qxd7 {[%clk 0:02:59]} 5. O-O {[%clk 0:03:00]}  Nf6 {[%clk 0:02:59]} 6. Qe2 {[%clk 0:03:01]}  Nc6 {[%clk 0:02:58]} 7. Rd1 {[%clk 0:03:01]}  e6 {[%clk 0:02:57]} 8. d4 {[%clk 0:03:01]}  cxd4 {[%clk 0:02:56]} 9. Nxd4 {[%clk 0:03:02]}  Be7 {[%clk 0:02:56]} 10. c4 {[%clk 0:03:02]}  O-O {[%clk 0:02:56]} 11. Nc3 {[%clk 0:03:03]}  Rac8 {[%clk 0:02:52]} 12. Nxc6 {[%clk 0:02:56]}  Qxc6 {[%clk 0:02:48]} 13. Be3 {[%clk 0:02:48]}  Qxc4 {[%clk 0:02:41]} 14. Qxc4 {[%clk 0:02:47]}  Rxc4 {[%clk 0:02:41]} 15. Bxa7 {[%clk 0:02:48]}  Nxe4 {[%clk 0:02:32]} 16. Nxe4 {[%clk 0:02:48]}  Rxe4 {[%clk 0:02:32]} 17. Rac1 {[%clk 0:02:45]}  Ra4 {[%clk 0:02:16]} 18. Bd4 {[%clk 0:02:41]}  Rxa2 {[%clk 0:02:02]} 19. Rc7 {[%clk 0:02:40]}  Bf6 {[%clk 0:01:48]} 20. Bxf6 {[%clk 0:02:35]}  gxf6 {[%clk 0:01:49]} 21. Rxb7 {[%clk 0:02:36]}  Rc8 {[%clk 0:01:47]} 22. g3 {[%clk 0:02:33]}  Rc2 {[%clk 0:01:44]} 23. Rxd6 {[%clk 0:02:32]}  Raxb2 {[%clk 0:01:42]} 24. Rd8+ {[%clk 0:02:32]}  Kg7 {[%clk 0:01:41]} 25. Rxb2 {[%clk 0:02:32]}  Rxb2 {[%clk 0:01:41]} 26. Rd4 {[%clk 0:02:32]}  f5 {[%clk 0:01:38]} 27. Rh4 {[%clk 0:02:31]}  Ra2 {[%clk 0:01:36]} 28. Rb4 {[%clk 0:02:30]}  Kg6 {[%clk 0:01:36]} 29. h4 {[%clk 0:02:30]}  h5 {[%clk 0:01:35]} 30. Rb8 {[%clk 0:02:29]}  Rc2 {[%clk 0:01:35]} 31. Rg8+ {[%clk 0:02:29]}  Kh7 {[%clk 0:01:32]} 32. Rg5 {[%clk 0:02:28]}  Kh6 {[%clk 0:01:33]} 33. Rg8 {[%clk 0:02:29]}  Rc4 {[%clk 0:01:29]} 34. Rh8+ {[%clk 0:02:25]}  Kg6 {[%clk 0:01:29]} 35. Rg8+ {[%clk 0:02:26]}  Kh7 {[%clk 0:01:29]} 36. Rg5 {[%clk 0:02:25]}  Kh6 {[%clk 0:01:28]} 37. Rg8 {[%clk 0:02:26]}  Rg4 {[%clk 0:01:24]} 38. Rh8+ {[%clk 0:02:25]}  Kg6 {[%clk 0:01:23]} 39. Rg8+ {[%clk 0:02:24]}  Kh7 {[%clk 0:01:20]} 40. Ra8 {[%clk 0:02:25]}  f4 {[%clk 0:01:18]} 41. Kg2 {[%clk 0:02:18]}  fxg3 {[%clk 0:01:17]} 42. fxg3 {[%clk 0:02:18]}  Rc4 {[%clk 0:01:17]} 43. Kf3 {[%clk 0:02:17]}  Kg7 {[%clk 0:01:15]} 44. Ra7 {[%clk 0:02:17]}  Rb4 {[%clk 0:01:15]} 45. Rc7 {[%clk 0:02:16]}  Kg6 {[%clk 0:01:15]} 46. Rc8 {[%clk 0:02:16]}  Rb3+ {[%clk 0:01:14]} 47. Kf4 {[%clk 0:02:16]}  Rb4+ {[%clk 0:01:14]} 48. Kf3 {[%clk 0:02:17]}  e5 {[%clk 0:01:11]} 49. Rh8 {[%clk 0:02:13]}  Rb3+ {[%clk 0:01:00]} 50. Kf2 {[%clk 0:02:11]}  f6 {[%clk 0:00:58]} 51. Rg8+ {[%clk 0:02:12]}  Kf5 {[%clk 0:00:57]} 52. Rg7 {[%clk 0:02:00]}  Rb2+ {[%clk 0:00:56]} 53. Ke3 {[%clk 0:01:59]}  Rb3+ {[%clk 0:00:54]} 54. Kf2 {[%clk 0:01:59]}  Rb4 {[%clk 0:00:50]} 55. Rg8 {[%clk 0:01:51]}  Rb3 {[%clk 0:00:47]} 56. Rg7 {[%clk 0:01:51]} 1/2-1/2

[Event "January 2 Early 2024"]
[Site "https://www.chess.com"]
[Date "2024.01.02"]
[Round "4"]
[White "Harper, Ryan"]
[Black "Veiga, Jose Francisco R P Neves"]
[Result "0-1"]
[Board "124"]
[TimeControl "180+1"]
[WhiteFideId "7700156"]
[BlackFideId "1930087"]
[WhiteElo "2229"]
[BlackElo "2537"]
[WhiteTeam "TTO"]
[BlackTeam "POR"]
[WhiteClock "0:00:00"]
[BlackClock "0:01:09"]

1. e4 {[%clk 0:02:54]}  c5 {[%clk 0:02:59]} 2. Nf3 {[%clk 0:02:54]}  a6 {[%clk 0:02:59]} 3. d4 {[%clk 0:02:46]}  cxd4 {[%clk 0:03:00]} 4. Nxd4 {[%clk 0:02:46]}  Nf6 {[%clk 0:02:57]} 5. Nc3 {[%clk 0:02:44]}  e5 {[%clk 0:02:58]} 6. Nde2 {[%clk 0:02:42]}  Nc6 {[%clk 0:02:57]} 7. g3 {[%clk 0:02:41]}  Bb4 {[%clk 0:02:56]} 8. Bg2 {[%clk 0:02:39]}  O-O {[%clk 0:02:56]} 9. O-O {[%clk 0:02:37]}  h6 {[%clk 0:02:55]} 10. h3 {[%clk 0:02:31]}  d6 {[%clk 0:02:56]} 11. Be3 {[%clk 0:02:28]}  Be6 {[%clk 0:02:55]} 12. a3 {[%clk 0:02:28]}  Bc5 {[%clk 0:02:54]} 13. Qd2 {[%clk 0:02:24]}  Qc7 {[%clk 0:02:33]} 14. Rac1 {[%clk 0:01:52]}  Rfd8 {[%clk 0:02:31]} 15. Nd5 {[%clk 0:01:52]}  Bxd5 {[%clk 0:02:31]} 16. exd5 {[%clk 0:01:52]}  Ne7 {[%clk 0:02:31]} 17. c4 {[%clk 0:01:47]}  a5 {[%clk 0:02:24]} 18. b4 {[%clk 0:01:28]}  axb4 {[%clk 0:02:23]} 19. axb4 {[%clk 0:01:29]}  Bxe3 {[%clk 0:02:23]} 20. Qxe3 {[%clk 0:01:30]}  Ra4 {[%clk 0:02:09]} 21. Qb3 {[%clk 0:01:22]}  Rda8 {[%clk 0:02:09]} 22. Nc3 {[%clk 0:01:11]}  Ra3 {[%clk 0:01:44]} 23. Nb5 {[%clk 0:00:58]}  Rxb3 {[%clk 0:01:43]} 24. Nxc7 {[%clk 0:00:58]}  Rc8 {[%clk 0:01:31]} 25. Nb5 {[%clk 0:00:57]}  Rxb4 {[%clk 0:01:31]} 26. Nxd6 {[%clk 0:00:52]}  Rd8 {[%clk 0:01:31]} 27. Nb5 {[%clk 0:00:42]}  Nexd5 {[%clk 0:01:27]} 28. cxd5 {[%clk 0:00:41]}  Rxb5 {[%clk 0:01:27]} 29. Rfd1 {[%clk 0:00:30]}  Rd6 {[%clk 0:01:27]} 30. Rc7 {[%clk 0:00:23]}  g6 {[%clk 0:01:25]} 31. Re1 {[%clk 0:00:12]}  Nd7 {[%clk 0:01:20]} 32. Ra1 {[%clk 0:00:11]}  Kg7 {[%clk 0:01:17]} 33. Ra7 {[%clk 0:00:11]}  Nc5 {[%clk 0:01:17]} 34. Ra8 {[%clk 0:00:05]}  e4 {[%clk 0:01:16]} 35. Rcc8 {[%clk 0:00:05]}  Rxd5 {[%clk 0:01:16]} 36. Rh8 {[%clk 0:00:03]}  h5 {[%clk 0:01:15]} 37. Rag8+ {[%clk 0:00:01]}  Kf6 {[%clk 0:01:15]} 38. Re8 {[%clk 0:00:02]}  Rd1+ {[%clk 0:01:08]} 39. Kh2 {[%clk 0:00:00]}  Rb2 {[%clk 0:01:09]} 0-1

[Event "January 2 Early 2024"]
[Site "https://www.chess.com"]
[Date "2024.01.02"]
[Round "4"]
[White "Ilamparthi A R"]
[Black "Kanter, Eduard"]
[Result "1-0"]
[Board "127"]
[TimeControl "180+1"]
[WhiteFideId "45015775"]
[BlackFideId "4103963"]
[WhiteElo "2824"]
[BlackElo "2397"]
[WhiteTeam "IND"]
[BlackTeam "RUS"]
[WhiteClock "0:00:49"]
[BlackClock "0:00:00"]

1. d4 {[%clk 0:03:00]}  Nf6 {[%clk 0:02:58]} 2. Nf3 {[%clk 0:03:00]}  d6 {[%clk 0:02:57]} 3. Bf4 {[%clk 0:02:58]}  b6 {[%clk 0:02:49]} 4. e3 {[%clk 0:02:57]}  Bb7 {[%clk 0:02:49]} 5. h3 {[%clk 0:02:57]}  Nbd7 {[%clk 0:02:49]} 6. Nbd2 {[%clk 0:02:56]}  e6 {[%clk 0:02:49]} 7. a4 {[%clk 0:02:55]}  a6 {[%clk 0:02:48]} 8. a5 {[%clk 0:02:48]}  b5 {[%clk 0:02:46]} 9. c4 {[%clk 0:02:48]}  bxc4 {[%clk 0:02:36]} 10. Bxc4 {[%clk 0:02:49]}  h6 {[%clk 0:02:33]} 11. Bh2 {[%clk 0:02:44]}  g5 {[%clk 0:02:28]} 12. Qe2 {[%clk 0:02:39]}  d5 {[%clk 0:02:21]} 13. Bd3 {[%clk 0:02:37]}  c5 {[%clk 0:02:22]} 14. Ne5 {[%clk 0:02:08]}  c4 {[%clk 0:02:15]} 15. Bc2 {[%clk 0:02:07]}  Bb4 {[%clk 0:02:07]} 16. O-O {[%clk 0:01:59]}  Bxa5 {[%clk 0:01:41]} 17. f4 {[%clk 0:01:58]}  Nxe5 {[%clk 0:01:41]} 18. fxe5 {[%clk 0:01:55]}  Nd7 {[%clk 0:01:18]} 19. Qh5 {[%clk 0:01:40]}  Rf8 {[%clk 0:01:17]} 20. Rxf7 {[%clk 0:01:24]}  Rxf7 {[%clk 0:01:07]} 21. Rf1 {[%clk 0:01:24]}  Qe7 {[%clk 0:00:51]} 22. Rxf7 {[%clk 0:01:22]}  Qxf7 {[%clk 0:00:52]} 23. Bg6 {[%clk 0:01:22]}  Bxd2 {[%clk 0:00:52]} 24. Bxf7+ {[%clk 0:01:22]}  Ke7 {[%clk 0:00:52]} 25. Qg6 {[%clk 0:01:06]}  Bxe3+ {[%clk 0:00:43]} 26. Kh1 {[%clk 0:01:06]}  Nf8 {[%clk 0:00:18]} 27. Qf6+ {[%clk 0:01:06]}  Kd7 {[%clk 0:00:19]} 28. Bxe6+ {[%clk 0:00:59]}  Nxe6 {[%clk 0:00:18]} 29. Qf7+ {[%clk 0:01:00]}  Kc6 {[%clk 0:00:17]} 30. Qxe6+ {[%clk 0:01:00]}  Kb5 {[%clk 0:00:17]} 31. Bg1 {[%clk 0:00:58]}  Bxg1 {[%clk 0:00:13]} 32. Kxg1 {[%clk 0:00:59]}  a5 {[%clk 0:00:14]} 33. Qe7 {[%clk 0:00:53]}  Ka6 {[%clk 0:00:11]} 34. e6 {[%clk 0:00:53]}  Rc8 {[%clk 0:00:05]} 35. Qd7 {[%clk 0:00:49]}  Kb6 {[%clk 0:00:00]} 36. e7 {[%clk 0:00:49]} 1-0

[Event "January 2 Early 2024"]
[Site "https://www.chess.com"]
[Date "2024.01.02"]
[Round "4"]
[White "Skibbe, Willi"]
[Black "Dragun, Kamil"]
[Result "0-1"]
[Board "128"]
[TimeControl "180+1"]
[WhiteFideId "4682190"]
[BlackFideId "1134167"]
[WhiteElo "2397"]
[BlackElo "2776"]
[WhiteTeam "GER"]
[BlackTeam "POL"]
[WhiteClock "0:01:02"]
[BlackClock "0:00:51"]

1. c4 {[%clk 0:03:00]}  c6 {[%clk 0:02:58]} 2. Nf3 {[%clk 0:02:59]}  d5 {[%clk 0:02:59]} 3. d4 {[%clk 0:02:58]}  Nf6 {[%clk 0:02:59]} 4. Nbd2 {[%clk 0:02:58]}  Bf5 {[%clk 0:02:56]} 5. Nh4 {[%clk 0:02:55]}  Be4 {[%clk 0:02:56]} 6. f3 {[%clk 0:02:54]}  Bg6 {[%clk 0:02:54]} 7. e3 {[%clk 0:02:52]}  e6 {[%clk 0:02:54]} 8. Nxg6 {[%clk 0:02:51]}  hxg6 {[%clk 0:02:54]} 9. g3 {[%clk 0:02:49]}  c5 {[%clk 0:02:54]} 10. Bg2 {[%clk 0:02:44]}  cxd4 {[%clk 0:02:54]} 11. exd4 {[%clk 0:02:45]}  Nc6 {[%clk 0:02:54]} 12. Qa4 {[%clk 0:02:34]}  dxc4 {[%clk 0:02:50]} 13. f4 {[%clk 0:02:28]}  Nd5 {[%clk 0:02:49]} 14. Nxc4 {[%clk 0:02:26]}  Bb4+ {[%clk 0:02:39]} 15. Kf2 {[%clk 0:02:22]}  O-O {[%clk 0:02:40]} 16. Rd1 {[%clk 0:02:21]}  a6 {[%clk 0:02:07]} 17. Ne5 {[%clk 0:02:21]}  Nxe5 {[%clk 0:02:04]} 18. dxe5 {[%clk 0:02:06]}  Qb6+ {[%clk 0:02:02]} 19. Kf1 {[%clk 0:02:07]}  Rac8 {[%clk 0:01:58]} 20. Bxd5 {[%clk 0:02:03]}  exd5 {[%clk 0:01:57]} 21. Qb3 {[%clk 0:02:03]}  d4 {[%clk 0:01:06]} 22. Bd2 {[%clk 0:01:55]}  Qb5+ {[%clk 0:01:04]} 23. Kf2 {[%clk 0:01:50]}  Rc4 {[%clk 0:00:52]} 24. a3 {[%clk 0:01:02]}  Bxd2 {[%clk 0:00:51]} 0-1